[Event "8th Dolomiti Open 2017"]
[Site "Forni di Sopra"]
[Date "2017.06.13"]
[Round "4.12"]
[White "Kiefer, Gerhard"]
[Black "Bettalli, Francesco"]
[Result "1/2-1/2"]
[ECO "B33"]
[WhiteElo "2259"]
[BlackElo "2182"]
[Annotator "ChessBase"]
[PlyCount "54"]
[EventDate "2017.??.??"]
[EventType "swiss"]
[EventCountry "ITA"]
[SourceTitle "playchess.com"]
[Source "ChessBase"]
[SourceQuality "1"]
[TimeControl "40/5400+30:1800+30"]

1. e4 {[%emt 0:01:30]} c5 {[%emt 0:01:00]} 2. Nf3 {[%emt 0:00:30]} Nc6 {[%emt 0:00:30]} 3. d4 {[%emt 0:01:30]} cxd4 {[%emt 0:00:00]} 4. Nxd4 {[%emt 0:00:00]} Nf6 {[%emt 0:00:00]} 5. Nc3 {[%emt 0:00:00]} e5 {[%emt 0:00:30]} 6. Ndb5 {[%emt 0:00:00]} d6 {[%emt 0:00:30]} 7. Bg5 {[%emt 0:00:00]} a6 {[%emt 0:00:00]} 8. Na3 {[%emt 0:00:30]} b5 {[%emt 0:00:00]} 9. Bxf6 {[%emt 0:00:00]} gxf6 {[%emt 0:00:30]} 10. Nd5 {[%emt 0:00:00]} f5 {[%emt 0:00:00]} 11. exf5 {[%emt 0:00:00]} Bxf5 {[%emt 0:00:00]} 12. c3 {[%emt 0:00:00]} Bg7 {[%emt 0:00:30]} 13. Nc2 {[%emt 0:00:30]} O-O {[%emt 0:00:30]} 14. Nce3 {[%emt 0:00:00]} Be6 {[%emt 0:00:00]} 15. Bd3 {[%emt 0:00:00]} f5 {[%emt 0:00:00]} 16. Qh5 {[%emt 0:00:30]} e4 {[%emt 0:00:30]} 17. Bc2 {[%emt 0:00:00]} Ne7 {[%emt 0:00:30]} 18. Nf4 {[%emt 0:00:00]} Bf7 {[%emt 0:00:30]} 19. Bb3 {[%emt 0:00:00]} Bxb3 {[%emt 0:09:30]} 20. axb3 {[%emt 0:01:00]} Qd7 {[%emt 0:00:30]} 21. O-O {[%emt 0:00:30] ] O-O [%clk 1:34:0]} Be5 {[%emt 0:00:00]} 22. Ned5 {[%emt 0:04:30]} Rf7 {[%emt 0:07:00]} 23. Nxe7+ {[%emt 0:05:30]} Qxe7 {[%emt 0:00:30]} 24. Nd5 {[%emt 0:00:30]} Qe6 {[%emt 0:00:00]} 25. Rad1 {[%emt 0:45:30]} Kh8 {[%emt 0:11:00]} 26. f4 {[%emt 0:02:30]} Bf6 {[%emt 0:00:30]} 27. b4 {[%emt 0:03:30]} Rg8 {[%emt 0:05:30]} 1/2-1/2